Cogmind - Beta 13 X2 @@@ ROGUE MODE // 2024.01.14 @ 16:35:53 Player: Minty Result: Destroyed by S-27 Virus with Autogun Performance ------------- Evolutions (5) 2500 Regions Visited (12) 2400 Robots Destroyed (72) 360 Value Destroyed (2121) 2121 Prototype IDs (216) 4320 Alien Tech Used (0) 0 Bonus (3154) 3154 TOTAL SCORE: 14855 Bonus ------- High Alert Combat Kills 133 Follower Combat Kills 35 Met Data Miner 300 Used Data Conduit 3000 Friendly Fire -314 Cogmind --------- Core Integrity 0/1000 Matter 221/300 Energy 100/100 System Corruption 0% Temperature Cool (0) Movement Core (50) Location -5/Upper Caves Parts ------- > --- POWER (1) -------- (None) > --- PROPULSION (5) --- (None) > --- UTILITY (7) ------ Enhanced Optical Array Signal Interpreter Advanced Terrain Scanner Advanced Terrain Scan Processor Advanced Targeting Computer > --- WEAPON (4) ------- (None) > --- INVENTORY (5) ---- Advanced Heat Sink Improved Cooling System Improved Transmission Jammer Improved Thermal Shield Peak State ------------ > --- POWER ------------ Light Nuclear Core > --- PROPULSION ------- Makeshift Hover Unit Makeshift Hover Unit Makeshift Hover Unit Improved VTOL Module > --- UTILITY ---------- Improved Cooling System Enhanced Optical Array Signal Interpreter Advanced Targeting Computer ECM Suite Improved Utility Shielding Hacking Suite > --- WEAPON ----------- Thermic Laser Enhanced Flamer Enhanced Flamer > --- INVENTORY -------- VTOL Module Advanced Terrain Scanner Plasma Rifle Heavy Rocket Launcher [Rating: 54] Favorites ----------- Power Light Nuclear Core Engine Ion Engine Power Core Light Nuclear Core Propulsion Improved VTOL Module Leg Aluminum Leg Hover Unit Improved Hover Unit Flight Unit Improved VTOL Module Utility Signal Interpreter Device Improved Cooling System Storage Small Storage Unit Processor Signal Interpreter Hackware Hacking Suite Protection Improved Utility Shielding Weapon Medium Laser Energy Gun Medium Laser Energy Cannon Advanced Beam Cannon Ballistic Gun Battle Rifle Ballistic Cannon Gauss Cannon Launcher Rocket Launcher Special Weapon Enhanced Flamer Build | -11 -10 -10 -9 -8 -7 -6 -6 -6 -6 -5 -5 -5 ------- Run | Yrd Mat Min Mat Mat Fac Fac Low Low Dat Pro Fac Upp Slots Evolved 10 | . . . 2 2 2 2 . . . . 2 . Power . | . . . . . . . . . . . . . Propulsion 3 | . . . 1 . . 1 . . . . 1 . Utility 5 | . . . 1 2 1 1 . . . . . . Weapon 2 | . . . . . 1 . . . . . 1 . Parts Attached 105 | . 8 3 12 25 10 2 19 11 2 8 3 2 Power 13 | . . . 3 2 2 1 3 1 . 1 . . Engine 5 | . . . 1 2 . . 1 1 . . . . Core 8 | . . . 2 . 2 1 2 . . 1 . . Reactor . | . . . . . . . . . . . . . Propulsion 29 | . 3 2 4 9 3 . 3 3 2 . . . Treads . | . . . . . . . . . . . . . Leg . | . . . . . . . . . . . . . Wheel . | . . . . . . . . . . . . . Hover 15 | . 3 2 3 4 . . . 3 . . . . Flight 14 | . . . 1 5 3 . 3 . 2 . . . Utility 26 | . 3 . . 7 2 1 6 3 . 1 1 2 Device 14 | . 2 . . 2 2 . 4 2 . . 1 1 Storage 2 | . . . . 1 . . 1 . . . . . Processor 7 | . 1 . . 3 . 1 . 1 . . . 1 Hackware 2 | . . . . 1 . . . . . 1 . . Protection 1 | . . . . . . . 1 . . . . . Artifact . | . . . . . . . . . . . . . Weapon 37 | . 2 1 5 7 3 . 7 4 . 6 2 . Energy Gun 16 | . 2 1 1 3 3 . 4 2 . . . . Energy Cannon 1 | . . . 1 . . . . . . . . . Ballistic Gun 4 | . . . . . . . 1 . . 2 1 . Ballistic Cannon 5 | . . . . 3 . . . . . 1 1 . Launcher 9 | . . . 3 1 . . 2 . . 3 . . Special Weapon 2 | . . . . . . . . 2 . . . . Impact Weapon . | . . . . . . . . . . . . . Slashing Weapon . | . . . . . . . . . . . . . Piercing Weapon . | . . . . . . . . . . . . . Special Melee Weapon . | . . . . . . . . . . . . . Unidentified Prototypes 4 | . . . 3 . 1 . . . . . . . Parts Lost 36 | . . . 4 9 . 1 4 1 6 5 2 4 Power 6 | . . . 1 2 . . 1 . 1 1 . . Propulsion 17 | . . . 2 6 . 1 3 1 2 2 . . Utility 5 | . . . . . . . . . . 1 1 3 Weapon 8 | . . . 1 1 . . . . 3 1 1 1 Highest Loss Streak 6 | . . . 1 5 . 1 2 1 6 2 1 5 To Critical Strikes . | . . . . . . . . . . . . . Average Slot Usage (%) 70 | . 96 100 69 81 65 56 67 82 87 49 42 25 Engine 3 | . 14 14 5 4 . . 1 1 6 . . . Core 2 | . . . 4 1 4 6 3 4 . 1 . . Hover 9 | . 21 28 17 18 . . . 13 13 . . . Flight 7 | . . . 4 4 19 13 19 3 2 4 . . Device 2 | . 7 . . 4 . . 1 8 6 . 4 3 Storage 5 | . 14 14 11 9 7 6 2 . . . . . Processor 18 | . 5 14 11 16 23 20 20 21 26 26 23 20 Hackware 4 | . . . . 6 7 6 6 6 6 7 5 1 Protection 2 | . . . . . . . 4 6 6 6 4 . Energy Gun 6 | . 28 28 8 2 2 1 4 7 13 . . . Ballistic Cannon 1 | . . . . 11 . . . . . . . . Launcher 1 | . . . 7 . . . . . . . . . Naked Turns . | . . . . . . . . . . . . . Heaviest Build 26 | 13 15 14 18 26 26 14 20 23 23 10 11 5 Greatest Support 36 | 20 20 14 14 27 15 15 18 36 24 9 12 12 Greatest Overweight (x) 2 | . 1 . 2 2 1 1 1 1 1 1 2 . Average Overweight (x) . | . . . . . . . . . . . . . Largest Inventory Capacity 8 | . 8 8 8 8 8 8 8 5 5 5 5 5 Average Capacity 6 | . 8 8 8 8 8 8 6 5 5 5 5 5 Most Carried 8 | . 8 8 8 8 8 7 8 5 5 5 5 5 Average Carried 6 | . 7 8 7 7 6 5 5 4 4 4 4 4 Final Capacity 8 | 8 8 8 8 8 8 8 5 5 5 5 5 5 Final Carried 8 | 7 8 8 7 7 4 7 5 5 3 5 5 4 Class Distribution -------------------- 47% | Mutant 24% | Sprinter 9% | Derelict-Gunner 8% | Scavenger-Sprinter 3% | Hacker-Mutant 3% | Scavenger-Scout Dominant Class ---------------- Mutant | -10/Materials Mutant | -10/Mines Mutant | -9/Materials Mutant | -8/Materials Sprinter | -7/Factory Sprinter | -6/Factory Sprinter | -6/Lower Caves Derelict-Gunner | -6/Lower Caves Derelict-Gunner | -6/Data Miner Mutant | -5/Proximity Caves Mutant | -5/Factory Mutant | -5/Upper Caves Resources | -11 -10 -10 -9 -8 -7 -6 -6 -6 -6 -5 -5 -5 ----------- Run | Yrd Mat Min Mat Mat Fac Fac Low Low Dat Pro Fac Upp Matter Collected 1806 | 200 70 20 247 461 86 85 371 115 . 151 . . Remotely 60 | . 60 . . . . . . . . . . . Salvage Created 1954 | . 93 114 474 527 . 85 164 220 . 244 33 . Parts 109 | . 14 5 22 39 . 3 8 8 . 7 3 . Haulers Intercepted 2 | . . . 1 1 . . . . . . . . Recyclers Shooed 1 | . . . . . 1 . . . . . . . Parts Field Recycled 4 | . . . . . 4 . . . . . . . Retrieved Matter 79 | . . . . . 79 . . . . . . . Parts Self-Destructed 25 | . . . . . . . 9 10 . 6 . . Prevented . | . . . . . . . . . . . . . Kills | -11 -10 -10 -9 -8 -7 -6 -6 -6 -6 -5 -5 -5 ------- Run | Yrd Mat Min Mat Mat Fac Fac Low Low Dat Pro Fac Upp Combat Hostiles Destroyed 51 | . 3 2 14 14 . . 8 3 . 5 2 . Guns 10 | . 3 2 2 . . . 1 2 . . . . Cannons 12 | . . . . 10 . . . . . 2 . . AOE 28 | . . . 12 4 . . 7 . . 3 2 . Classes Destroyed 12 | . 2 2 3 2 . 2 1 . . . . . Worker 3 | . . . 1 1 . . . . . . 1 . Builder 5 | . . 1 . 2 . . . . . . 2 . Hauler 2 | . . . 1 1 . . . . . . . . Recycler 3 | . . . 2 1 . . . . . . . . Operator 1 | . . . . . . 1 . . . . . . Watcher 5 | . 2 . . 3 . . . . . . . . Swarmer 19 | . 3 . 4 3 . . 7 . . . 2 . Grunt 26 | . . 2 10 6 . . . 3 . 5 . . Duelist 2 | . . . . . . 2 . . . . . . Sentry 4 | . . . . 4 . . . . . . . . Hunter 1 | . . . . 1 . . . . . . . . Programmer 1 | . . . . . . . 1 . . . . . Packrat 1 | . . . . . . . 1 . . . . . Best Kill Streak 15 | . 4 2 6 15 . 1 4 2 . 5 5 . Combat Bots Only 9 | . 3 1 5 9 . . 4 2 . 5 2 . Max Kills in Single Turn 4 | . 2 1 4 3 . 3 2 1 . 3 4 . Gunslinging 1 | . 1 . . . . . . . . . . . Exploded 3 | . . . 3 1 . . 2 . . 3 2 . Melee . | . . . . . . . . . . . . . Uniques/NPCs Destroyed . | . . . . . . . . . . . . . Combat | -11 -10 -10 -9 -8 -7 -6 -6 -6 -6 -5 -5 -5 -------- Run | Yrd Mat Min Mat Mat Fac Fac Low Low Dat Pro Fac Upp Hostile Shots Fired 435 | . 6 13 25 122 14 . 37 12 15 75 31 85 Missed 176 | . 1 . 6 52 7 . 15 6 6 36 10 37 Damage Taken 5082 | . 41 174 349 1144 95 66 435 117 418 704 780 759 Core 2357 | . . 65 144 341 76 . 124 39 98 459 410 601 Absorbed by Shields . | . . . . . . . . . . . . . Redirected to Shielding 71 | . . . . . . . . . . 33 38 . Core Remaining (%) 63 | 100 . 74 64 38 89 . . . . 15 . . Volleys Fired 158 | . 7 14 24 51 14 1 14 10 1 9 11 2 Largest 3 | . 2 2 2 2 1 1 2 3 1 1 1 1 Hottest 240 | . 90 100 100 115 61 55 165 240 80 57 57 30 Shots Fired 233 | . 12 26 37 85 14 1 15 20 1 9 11 2 Gun 118 | . 12 26 24 4 14 1 10 19 . . 6 2 Cannon 82 | . . . . 72 . . . . . 5 5 . Launcher 31 | . . . 13 9 . . 5 . . 4 . . Special 2 | . . . . . . . . 1 1 . . . Kinetic 90 | . . . . 72 . . . . . 5 11 2 Thermal 105 | . 12 26 24 4 8 . 10 20 1 . . . Explosive 29 | . . . 13 9 . . 5 . . 2 . . Electromagnetic 9 | . . . . . 6 1 . . . 2 . . Robot Hit Streak 12 | . 5 5 7 6 10 . 7 12 . 3 5 1 Robot Miss Streak 6 | . 2 3 6 5 1 1 4 1 1 2 2 1 Penetration Max 1 | . . . . 1 . . . . . . 1 . Secondary Targets 1 | . 1 . . . . . . . . . . . Max Gunslinging Chain 1 | . 1 . . . . . . . . . . . Shots Hit Robots 136 | . 7 17 22 40 11 . 10 16 . 5 7 1 Core Hits 106 | . 5 6 25 30 1 3 15 7 . 8 6 . Critical Kills 2 | . . . . . . . . . . 2 . . Critical Parts Destroyed 1 | . . . . . . . . . . 1 . . Critical Strikes 14 | . 1 2 3 4 . . . . . 3 1 . Burn 6 | . 1 2 3 . . . . . . . . . Destroy 4 | . . . . . . . . . . 3 1 . Blast 4 | . . . . 4 . . . . . . . . Melee Attacks . | . . . . . . . . . . . . . Impact . | . . . . . . . . . . . . . Slashing . | . . . . . . . . . . . . . Piercing . | . . . . . . . . . . . . . Sneak Attacks . | . . . . . . . . . . . . . Combat Hostiles . | . . . . . . . . . . . . . Follow-up Attacks . | . . . . . . . . . . . . . Damage Inflicted 6129 | . 82 205 1308 1846 262 177 775 315 . 418 706 35 Guns 1467 | . 82 205 211 25 256 . 216 315 . . 127 30 Cannons 1321 | . . . . 1069 . . . . . 70 182 . Explosions 3321 | . . . 1097 751 . 177 559 . . 347 390 . Melee . | . . . . . . . . . . . . . Ramming 20 | . . . . 1 6 . . . . 1 7 5 Kinetic 1478 | . . . . 1069 . . . . . 70 309 30 Thermal 1418 | . 82 205 211 229 160 . 216 315 . . . . Explosive 3017 | . . . 1097 547 . 177 559 . . 247 390 . Electromagnetic 196 | . . . . . 96 . . . . 100 . . Impact . | . . . . . . . . . . . . . Slashing . | . . . . . . . . . . . . . Piercing . | . . . . . . . . . . . . . Highest Corruption 4 | . . . . . . . 2 2 2 4 . . Average Corruption 2 | . . . . . . . 1 2 2 2 . . Corruption Purged . | . . . . . . . . . . . . . Corruption Blocked . | . . . . . . . . . . . . . Effects 18 | . . . . . . . 5 5 . 8 . . Message Errors 4 | . . . . . . . . 1 . 3 . . Matter Fused 2 | . . . . . . . . 1 . 1 . . Heat Flow Errors 5 | . . . . . . . 2 2 . 1 . . Energy Discharges 3 | . . . . . . . 1 1 . 1 . . Data Loss (major) 2 | . . . . . . . 1 . . 1 . . Alerts 2 | . . . . . . . 1 . . 1 . . Overload Shots . | . . . . . . . . . . . . . Overflow Damage 253 | . . . 26 17 . 9 105 . . . 96 . Projectiles 9 | . . . . 9 . . . . . . . . Explosions 244 | . . . 26 8 . 9 105 . . . 96 . Melee . | . . . . . . . . . . . . . Knockbacks 6 | . . . . 5 . . . . . . 1 . Impact . | . . . . . . . . . . . . . Kinetic 6 | . . . . 5 . . . . . . 1 . Secondary . | . . . . . . . . . . . . . Self-Inflicted Damage 827 | . . . 145 99 3 66 94 . . 19 399 2 Shots 16 | . . . 3 4 . 1 2 . . 2 4 . Rammed 6 | . . . . 1 1 . . . . 1 2 1 Targets Rammed 6 | . . . . 1 1 . . . . 1 2 1 Kicked . | . . . . . . . . . . . . . Crushed . | . . . . . . . . . . . . . Highest Temperature 459 | . 110 459 188 379 48 . 249 103 . 171 . . Average Temperature 103 | . 53 267 59 103 20 . 75 24 . 54 . . Received Heat Transfer 969 | . . 99 81 387 48 . 36 57 . 108 108 45 Effects 5 | . . 5 . . . . . . . . . . Shutdowns 1 | . . 1 . . . . . . . . . . Interference 2 | . . 2 . . . . . . . . . . Damage (minor) 2 | . . 2 . . . . . . . . . . Siege Activations . | . . . . . . . . . . . . . Robots Corrupted . | . . . . . . . . . . . . . Combat Hostiles . | . . . . . . . . . . . . . Parts Fried . | . . . . . . . . . . . . . Impact Corruptions . | . . . . . . . . . . . . . Robots Melted 1 | . . . . . . . . 1 . . . . Combat Hostiles 1 | . . . . . . . . 1 . . . . Parts Melted 4 | . . 3 1 . . . . . . . . . Heat Transferred 3572 | . 297 729 851 174 296 . 425 800 . . . . Parts Sabotaged . | . . . . . . . . . . . . . Parts Stolen . | . . . . . . . . . . . . . Parts Stripped . | . . . . . . . . . . . . . Power Chain Reactions . | . . . . . . . . . . . . . Missiles Intercepted . | . . . . . . . . . . . . . Alert | -11 -10 -10 -9 -8 -7 -6 -6 -6 -6 -5 -5 -5 ------- Run | Yrd Mat Min Mat Mat Fac Fac Low Low Dat Pro Fac Upp Peak Influence 546 | . 131 106 530 546 445 334 . . . . 372 . Initial 223 | . . 51 40 223 177 207 . . . . 119 . Average 245 | . 48 74 229 364 281 293 . . . . 205 . Maximum Alert Level 2 | . . . 2 2 2 1 . . . . 1 . Low Security (%) 41 | . 100 100 51 . 33 . . . . . 66 . Level 1 43 | . . . 18 73 57 100 . . . . 33 . Level 2 15 | . . . 30 26 9 . . . . . . . Level 3 . | . . . . . . . . . . . . . Level 4 . | . . . . . . . . . . . . . Level 5 . | . . . . . . . . . . . . . High Security . | . . . . . . . . . . . . . Max Security . | . . . . . . . . . . . . . Squads Dispatched 26 | . 3 . 4 11 5 2 . . . . 1 . Investigation 16 | . 2 . 2 5 5 1 . . . . 1 . Extermination . | . . . . . . . . . . . . . Reinforcement 7 | . 1 . 2 3 . 1 . . . . . . Assault . | . . . . . . . . . . . . . Garrison 3 | . . . . 3 . . . . . . . . Intercept . | . . . . . . . . . . . . . Searches Triggered . | . . . . . . . . . . . . . Construction Impeded . | . . . . . . . . . . . . . Haulers Reinforced . | . . . . . . . . . . . . . Active Scanning Responses . | . . . . . . . . . . . . . Cargo Convoy Interrupts . | . . . . . . . . . . . . . Stealth | -11 -10 -10 -9 -8 -7 -6 -6 -6 -6 -5 -5 -5 --------- Run | Yrd Mat Min Mat Mat Fac Fac Low Low Dat Pro Fac Upp Distress Signals 1 | . . . . 1 . . . . . . . . Communications Jammed . | . . . . . . . . . . . . . Distress Signals . | . . . . . . . . . . . . . Times Spotted 146 | . 7 2 18 35 8 2 21 5 5 21 11 11 Peak Tracking Total 17 | . 4 2 4 17 4 1 5 3 4 7 8 8 Tactical Retreats 18 | . . . 1 2 4 . 2 1 . 5 1 2 Traps | -11 -10 -10 -9 -8 -7 -6 -6 -6 -6 -5 -5 -5 ------- Run | Yrd Mat Min Mat Mat Fac Fac Low Low Dat Pro Fac Upp Traps Triggered 1 | . . . . . 1 . . . . . . . Indirectly . | . . . . . . . . . . . . . Trap Hack Attempts . | . . . . . . . . . . . . . Triggered . | . . . . . . . . . . . . . Disarmed . | . . . . . . . . . . . . . Reprogrammed 10 | . . . 3 3 . 4 . . . . . . Reused 3 | . . . 1 2 . . . . . . . . Traps Extracted . | . . . . . . . . . . . . . Installed . | . . . . . . . . . . . . . Triggered 4 | . . . 1 2 . . . 1 . . . . Machines | -11 -10 -10 -9 -8 -7 -6 -6 -6 -6 -5 -5 -5 ---------- Run | Yrd Mat Min Mat Mat Fac Fac Low Low Dat Pro Fac Upp Machines Disabled 17 | . 1 . 4 2 2 4 . . . . 4 . Max in Single Turn 4 | . 1 . 1 1 . 2 . . . . 4 . Machines Repaired . | . . . . . . . . . . . . . Machines Dismantled . | . . . . . . . . . . . . . Machines Sabotaged . | . . . . . . . . . . . . . Overloaded Fab Kills . | . . . . . . . . . . . . . Hacking | -11 -10 -10 -9 -8 -7 -6 -6 -6 -6 -5 -5 -5 --------- Run | Yrd Mat Min Mat Mat Fac Fac Low Low Dat Pro Fac Upp Machines Accessed 29 | . 4 . 4 7 6 2 . 1 4 . 1 . Terminals 14 | . 2 . 3 5 2 2 . . . . . . Fabricators 2 | . . . . . 2 . . . . . . . Repair Stations 2 | . 1 . . . . . . . . . 1 . Recycling Units 3 | . 1 . 1 . 1 . . . . . . . Scanalyzers 1 | . . . . 1 . . . . . . . . Garrison Access 2 | . . . . 1 1 . . . . . . . Total Hacks 117 | . 10 . 20 30 18 7 . 1 29 . 2 . Successful 72 | . 5 . 12 17 5 3 . 1 29 . . . Failed 45 | . 5 . 8 13 13 4 . . . . 2 . Catastrophic 9 | . 1 . . 4 2 1 . . . . 1 . Database Lockouts . | . . . . . . . . . . . . . Manual 37 | . 4 . 14 13 3 3 . . . . . . Terminals 60 | . 6 . 17 23 7 7 . . . . . . Fabricators 5 | . . . . . 5 . . . . . . . Repair Stations 5 | . 3 . . . . . . . . . 2 . Recycling Units 7 | . 1 . 3 . 3 . . . . . . . Scanalyzers 4 | . . . . 4 . . . . . . . . Garrison Access 6 | . . . . 3 3 . . . . . . . Terminal Hacks 54 | . 3 . 8 10 1 2 . 1 29 . . . Record 11 | . . . . . . . . . 11 . . . Part Schematic 10 | . . . . . . . . . 10 . . . Robot Schematic 5 | . . . . . . . . . 5 . . . Prototype ID Bank 8 | . 1 . 1 2 1 . . . 3 . . . Open Door 1 | . . . . . . . . 1 . . . . Alert Level 3 | . . . 2 1 . . . . . . . . Unreport Threat 3 | . . . 1 2 . . . . . . . . Locate Traps 5 | . . . 1 3 . 1 . . . . . . Reprogram Traps 3 | . . . 1 1 . 1 . . . . . . Patrol Status 2 | . 1 . 1 . . . . . . . . . Investigation Status 1 | . 1 . . . . . . . . . . . Recall Investigation 1 | . . . . 1 . . . . . . . . Registered Components 1 | . . . 1 . . . . . . . . . Fabricator Hacks 1 | . . . . . 1 . . . . . . . Build 1 | . . . . . 1 . . . . . . . Repair Station Hacks 1 | . 1 . . . . . . . . . . . Scan Component 1 | . 1 . . . . . . . . . . . Recycling Unit Hacks 5 | . . . 2 . 3 . . . . . . . Process 2 | . . . 1 . 1 . . . . . . . Report Inventory 2 | . . . 1 . 1 . . . . . . . Retrieve Matter 1 | . . . . . 1 . . . . . . . Scanalyzer 4 | . . . . 4 . . . . . . . . Insert Component 2 | . . . . 2 . . . . . . . . Analyze 2 | . . . . 2 . . . . . . . . Garrison Access Hacks . | . . . . . . . . . . . . . Unauthorized Hacks 7 | . 1 . 2 3 . 1 . . . . . . Terminals 4 | . . . 1 2 . 1 . . . . . . Assimilate 1 | . . . . . . 1 . . . . . . Botnet 3 | . . . 1 2 . . . . . . . . Fabricators . | . . . . . . . . . . . . . Repair Stations . | . . . . . . . . . . . . . Recycling Units 2 | . 1 . 1 . . . . . . . . . Tunnel 2 | . 1 . 1 . . . . . . . . . Scanalyzers . | . . . . . . . . . . . . . Garrison Access 1 | . . . . 1 . . . . . . . . Reprogram 1 | . . . . 1 . . . . . . . . Data Cores Recovered . | . . . . . . . . . . . . . Used . | . . . . . . . . . . . . . Hacking Detections 23 | . 3 . 4 7 6 2 . . . . 1 . Full Trace Events 15 | . 2 . 2 4 5 1 . . . . 1 . Feedback Events . | . . . . . . . . . . . . . Feedback Blocked . | . . . . . . . . . . . . . Robot Schematics Acquired 5 | . . . . . . . . . 5 . . . Robots Built 3 | . . . . . 3 . . . . . . . Authchips . | . . . . . . . . . . . . . Time 67 | . . . . . 67 . . . . . . . Total Robot Build Rating 12 | . . . . . 12 . . . . . . . Part Schematics Acquired 12 | . . . . 2 . . . . 10 . . . Parts Built . | . . . . . . . . . . . . . Authchips . | . . . . . . . . . . . . . Time . | . . . . . . . . . . . . . Total Part Build Rating . | . . . . . . . . . . . . . Parts Repaired . | . . . . . . . . . . . . . Time . | . . . . . . . . . . . . . Parts Recycled . | . . . . . . . . . . . . . Recycled Matter 26 | . . . 6 . 20 . . . . . . . Retrieved Matter 20 | . . . . . 20 . . . . . . . Retrieved Components . | . . . . . . . . . . . . . Parts Scanalyzed 2 | . . . . 2 . . . . . . . . Part Schematics Acquired 2 | . . . . 2 . . . . . . . . Parts Damaged . | . . . . . . . . . . . . . Bothacking | -11 -10 -10 -9 -8 -7 -6 -6 -6 -6 -5 -5 -5 ------------ Run | Yrd Mat Min Mat Mat Fac Fac Low Low Dat Pro Fac Upp Used RIF Installer . | . . . . . . . . . . . . . Robots Hacked . | . . . . . . . . . . . . . Non-combat . | . . . . . . . . . . . . . Combat . | . . . . . . . . . . . . . Robot Hacks Applied . | . . . . . . . . . . . . . Relay Couplers Released . | . . . . . . . . . . . . . Fabnet Peak Effective % . | . . . . . . . . . . . . . Robots Rewired 1 | . . . . . . . . . . . 1 . Allies Hacked . | . . . . . . . . . . . . . Hacks Repelled . | . . . . . . . . . . . . . Allies | -11 -10 -10 -9 -8 -7 -6 -6 -6 -6 -5 -5 -5 -------- Run | Yrd Mat Min Mat Mat Fac Fac Low Low Dat Pro Fac Upp Total Allies 7 | . . . . 1 4 1 . . . . 1 . Largest Group 3 | . . . . 1 3 2 1 . . . 1 . Highest-Rated Group 90 | . . . . 15 90 60 10 . . . 49 . Highest-Rated Ally 53 | . . . . 15 53 30 10 . . . 49 . Total Orders . | . . . . . . . . . . . . . Ally Attacks 28 | . . . . 9 17 . . . . . 2 . Total Damage 593 | . . . . 145 402 . . . . . 46 . Kills 5 | . . . . 1 4 . . . . . . . Allies Corrupted . | . . . . . . . . . . . . . Allies Melted . | . . . . . . . . . . . . . Intel | -11 -10 -10 -9 -8 -7 -6 -6 -6 -6 -5 -5 -5 ------- Run | Yrd Mat Min Mat Mat Fac Fac Low Low Dat Pro Fac Upp Robot Analysis Total 134 | . . . . . . . . . 134 . . . Derelict Logs Recovered 3 | . . 1 . . . . 1 . . . . 1 Drone Launches . | . . . . . . . . . . . . . Drone Recoveries . | . . . . . . . . . . . . . Exploration | -11 -10 -10 -9 -8 -7 -6 -6 -6 -6 -5 -5 -5 ------------- Run | Yrd Mat Min Mat Mat Fac Fac Low Low Dat Pro Fac Upp Turns Passed 2898 | . 226 110 321 478 361 75 410 253 63 398 118 85 Spaces Moved 4605 | 1 275 109 259 548 809 162 857 363 92 843 141 146 Core 725 | . . . . . . . . . . 438 141 146 Treads . | . . . . . . . . . . . . . Legs 39 | 1 38 . . . . . . . . . . . Wheels . | . . . . . . . . . . . . . Hover 1250 | . 237 109 259 347 . . . 217 81 . . . Flight 2591 | . . . . 201 809 162 857 146 11 405 . . Fastest Speed 26 | 120 56 56 56 35 29 29 26 32 32 32 50 50 Average Speed 44 | 120 65 56 82 49 32 36 30 51 62 41 52 50 Slowest Speed 180 | 120 120 56 180 180 107 102 105 107 140 107 150 50 Overloaded Moves . | . . . . . . . . . . . . . Propulsion Burnouts . | . . . . . . . . . . . . . Robots Hopped 19 | . . . . 10 5 1 1 1 1 . . . Cave-ins Triggered . | . . . . . . . . . . . . . Exploration Rate (%) 41 | 2 40 25 27 61 18 6 83 64 82 86 5 37 Regions Visited 12 Branch Regions 6 Pre-discovered Areas 33 | . 1 1 1 . . . . . 29 . . 1 Known Exits Taken 11 | . 1 1 1 1 1 1 1 1 1 1 1 . Unknown Exits Taken 1 | 1 . . . . . . . . . . . . Scrap Searched 8 | . . . . . . . 1 2 . 3 . 2 Spaces Dug . | . . . . . . . . . . . . . Terrain Destroyed 427 | . . . 141 112 . 38 66 . . 28 39 3 Melee . | . . . . . . . . . . . . . Projectile 47 | . . . . 37 . . . . . 3 4 3 AOE 380 | . . . 141 75 . 38 66 . . 25 35 . Terrain Rammed . | . . . . . . . . . . . . . Walls Destroyed . | . . . . . . . . . . . . . Machines Disabled . | . . . . . . . . . . . . . Actions | -11 -10 -10 -9 -8 -7 -6 -6 -6 -6 -5 -5 -5 --------- Run | Yrd Mat Min Mat Mat Fac Fac Low Low Dat Pro Fac Upp Total 5202 | . 311 130 330 662 895 176 990 406 93 882 172 155 Wait 203 | . 2 5 25 12 41 7 80 16 . 7 4 4 Move 4560 | . 274 108 258 531 799 159 854 360 89 842 140 146 Hop 14 | . . . . 6 4 1 1 1 1 . . . Pick Up 50 | . 7 . 1 16 11 3 3 3 . 5 1 . Fast Attach 46 | . 5 . 7 8 5 1 7 6 . 3 3 1 Attach 36 | . . . 4 6 5 1 10 2 2 5 . 1 Detach 31 | . 2 . 4 3 3 2 10 1 . 6 . . Swap 23 | . 3 3 1 11 . . 2 3 . . . . Drop 65 | . 11 . 6 17 12 1 9 4 . 4 1 . Fire 158 | . 7 14 24 51 14 1 14 10 1 9 11 2 Melee . | . . . . . . . . . . . . . Ram 6 | . . . . 1 1 . . . . 1 2 1 Kick . | . . . . . . . . . . . . . Crush . | . . . . . . . . . . . . . Escape Stasis . | . . . . . . . . . . . . . Rewire 10 | . . . . . . . . . . . 10 . Trap . | . . . . . . . . . . . . . Miscellaneous . | . . . . . . . . . . . . . Route ------- -11/Scrapyard -10/Materials -10/Mines -9/Materials -8/Materials -7/Factory -6/Factory -6/Lower Caves -6/Lower Caves -6/Data Miner -5/Proximity Caves -5/Factory -5/Upper Caves History --------- Turn | Location | Event 1 | -11/Scrapyard | Discovered new exit (range 0) 1 | -11/Scrapyard | Entered Materials 219 | -10/Materials | Discovered new exit (range 7) 226 | -10/Materials | Identified exit to Mines 227 | -10/Materials | Entered Mines 258 | -10/Mines | Learned location of Storage (-7) 314 | -10/Mines | Build established: Mutant 331 | -10/Mines | Discovered new exit (range 12) 337 | -10/Mines | Identified exit to Materials 337 | -10/Mines | Entered Materials 337 | -9/Materials | Evolved 2 slots: Propulsion x1, Utility x1 570 | -9/Materials | Discovered new exit (range 15) 652 | -9/Materials | Identified exit to Materials 658 | -9/Materials | Entered another Materials area 658 | -8/Materials | Evolved 2 slots: Utility x2 1052 | -8/Materials | Lost 5 parts (1p4n) 1063 | -8/Materials | Destroyed 9 combat bots 1114 | -8/Materials | Core integrity fell below 50% 1129 | -8/Materials | Discovered new exit (range 20) 1135 | -8/Materials | Identified exit to Factory 1136 | -8/Materials | Entered Factory 1136 | -7/Factory | Evolved 2 slots: Utility x1, Weapon x1 1153 | -7/Factory | Botcube activated 1169 | -7/Factory | Botcube completed mutation into hovering form, armed with 1 gun, 1 cannon. 1438 | -7/Factory | Fabricated L-41 Fighter? 1467 | -7/Factory | Build established: Sprinter 1474 | -7/Factory | Discovered new exit (range 4) 1475 | -7/Factory | Identified exit to Factory 1497 | -7/Factory | Entered another Factory area 1497 | -6/Factory | Accompanied by 2 allies 1497 | -6/Factory | Evolved 2 slots: Propulsion x1, Utility x1 1543 | -6/Factory | Spotted B-75 Beast 1565 | -6/Factory | Discovered new exit (range 6) 1567 | -6/Factory | Identified exit to Lower Caves 1572 | -6/Factory | Entered Lower Caves 1572 | -6/Lower Caves | Accompanied by 1 ally 1745 | -6/Lower Caves | Encountered a Warlord checkpoint 1965 | -6/Lower Caves | Identified exit to Lower Caves 1982 | -6/Lower Caves | Entered another Lower Caves area 1986 | -6/Lower Caves | Lost 4 allies 2100 | -6/Lower Caves | Encountered a Warlord checkpoint 2226 | -6/Lower Caves | Discovered new exit (range 8) 2234 | -6/Lower Caves | Identified exit to Data Miner 2235 | -6/Lower Caves | Entered Data Miner 2235 | -6/Data Miner | Discovered new exit (range 6) 2244 | -6/Data Miner | Met Data Miner 2260 | -6/Data Miner | Learned location of Section 7 (-2) 2260 | -6/Data Miner | Acquired the access code to Warlord's prototype stash 2272 | -6/Data Miner | Received God Mode back door access code from Data Miner 2279 | -6/Data Miner | Interfaced with the Data Conduit 2297 | -6/Data Miner | Identified exit to Proximity Caves 2298 | -6/Data Miner | Entered Proximity Caves 2327 | -5/Proximity Caves | Lost 6 parts (1p2n3w) 2594 | -5/Proximity Caves | Core integrity fell below 50% 2691 | -5/Proximity Caves | Discovered new exit (range 10) 2696 | -5/Proximity Caves | Core integrity fell below 20% 2696 | -5/Proximity Caves | Identified exit to Factory 2696 | -5/Proximity Caves | Entered Factory 2696 | -5/Factory | Evolved 2 slots: Propulsion x1, Weapon x1 2697 | -5/Factory | Loaded intel: 227 machine locations 2812 | -5/Factory | Discovered new exit (range 4) 2813 | -5/Factory | Identified exit to Upper Caves 2814 | -5/Factory | Entered Upper Caves 2822 | -5/Upper Caves | Core integrity fell below 50% 2857 | -5/Upper Caves | Core integrity fell below 20% 2869 | -5/Upper Caves | Lost 5 parts (4u1w) 2899 | -5/Upper Caves | Destroyed by S-27 Virus with Autogun Last Messages --------------- 02819_ Enh. Coil Gun destroyed. 02821_ Slammed into S-27 Virus. 02824_ Salvage Targeting Computer destroyed. 02825_ Searching scrap... 02825_ Found Mak. Power Source. 02825_ Found Imp. Field Recycling Unit. 02825_ Found Imp. Target Analyzer. 02825_ Found Hcp. Storage Unit. 02825_ Found 30 Matter. 02830_ Adv. System Shield destroyed. 02838_ Adv. Weight Redist. System destroyed. 02855_ Critical hit (Burn: +37). 02863_ Acquired derelict log, extracted data. World map confirmed: -4/Armory. 02866_ Searching scrap... 02866_ Found Adv. Terrain Scan Processor. 02866_ Found Mak. Hammer. 02866_ Found 13 Matter. 02867_ Acquired Adv. Terrain Scan Processor. 02887_ M2-K5Z(S) destroyed. Map ----- +----------------------------------------------------+ | ??###?#?#????## $ ?????????? | | ??#??## ###### ???? ?????#??? | | ###?## #? ???#?#?# ???????#?? | | #???# #### ### #????#??# ????#?# ? | | ????# #### ##??## ## ## #??????## ??????# | | ?#?????##?# #????## ## #######? ? ???# | | ##??####?## ##???#### % ##?? ????? | | ### ### ##?????## / #??? #????? | | ##?????# ###### #???? #????? | | #######?#?# ###????# #???#? ##???? | | #######?#### #???#### #?????# ##### | | ## #??##?## ??## ##?????# ?# | | ##?#???## ?# ###?### #?# | | # ##?#????### ## #### #?# | | ## ##??#?#??### ## ### ### | | ?## !% #####???????#?##### #?# ## | | ??### ##??#??####?#####?# #### | | ????# #??###???#####?#### #### | | ??### ###??###??##?####### #?# | | #### #####??##??#?####??# ### ## | | #??#?###########??## ## ## ?# | | ##?#### ###????##### ## ##??# | | ### ss######?### ## #???# | | ## s #?## ## #??## | | ####### ### #### | | ## ###?#?#####@### | | ### #?## #??#??? ??######## ## | | ?## #?#?## ##????? ??? ?###### ### # | | ? #?#?####???##?? ?? ??##??## ### ### | | #?????#?#???#???????? ??????##??# ###### #?? | | ## #??#???#??????#??????? ???? ?????# ###???###?? | | ? ????? ????????? #??? ?? ???????###?????????? | | ?? ???????????#? #??? ???##???????#?##??????? | | ## ????? ? ???#?#???????#? ???###????#??????????? | | ? ??"??????????????????? ???#??????????????????? | | ? ????? ?????#?#?#?#????? ?? ? ??????#?????????? | | ? ?? ??????????#??????? ? ? ? ???#?????????????? | | ??????? #?? ?????????? ? ??#? ????????????????? | | ????"??? ?#?#?? ?????????#????????????????????? | | ?? ? ???????#???? ???????????????????????????????? | | ?????????????? ? ?#??????????????? ????????????? | | ????????? ????????????#??? ????#?????????????????? | | ??????????????????????????? ?????????????????????? | | ?????????????????????????????????????????????????? | | ???????????????????#??????? ?????????????????????? | | ?????????????????????????????????????????????????? | | ?????????????????????????????????????????????????? | | ?????????????????????????????????????????????????? | | ?????????????????????????????????????????????????? | | ?????????????????????????????????????????????????? | +----------------------------------------------------+ Best States ------------- Heat Dissipation 64 Energy Generation 16 Energy Capacity 490 Matter Stores 300 Matter Capacity 300 Sight Range 22 Robot Scan Range 15 Terrain Scan Range 20 Terrain Scan Density 210 ECM Strength 1 Additional Mass Support 9 Utility Shielding 66 Evasion (%) 64 Targeting Accuracy 8 Salvage Targeting 1 Offensive Hacking 10 Defensive Hacking 14 Item Schematics ----------------- Gravmag System | -8/Materials | Scanalyzed Rocket Launcher | -8/Materials | Scanalyzed Combat Drone Bay | -6/Data Miner | Free Lgt. Regenerative Plating | -6/Data Miner | Free Cld. Gravmag System | -6/Data Miner | Free Imp. Matter Compressor | -6/Data Miner | Free Imp. KE Penetrator | -6/Data Miner | Free Adv. Medium Treads | -6/Data Miner | Free Adv. Target Analyzer | -6/Data Miner | Free Dispersion Rifle | -6/Data Miner | Free Micro-nuke Launcher | -6/Data Miner | Free KE Penetrator | -6/Data Miner | Free Robot Schematics ------------------ R-10 Processor | -6/Data Miner | Free C-35 Carver | -6/Data Miner | Free A-15 Conveyor | -6/Data Miner | Free G-50 Soldier | -6/Data Miner | Free L-61 Swordsman | -6/Data Miner | Free Fabricated ------------ L-41 Fighter | x3 | -7/Factory | Preloaded Alien Tech Used ----------------- None Achievements -------------- None Challenges ------------ None Game ------ Seed LongswordDrainedArmor Manual? 0 Play Time 00:36:06 Cumulative 593.0 hours Start 2024.01.14 @ 16:00:27 End 2024.01.14 @ 16:35:53 Sessions 1 Manual Loads 0 Difficulty Rogue Special Mode None Game No. 523 Rogue 250 Adventurer 123 Explorer 150 Win Type - Total 25 Types 19/0/4/1/0/0/0/1/0 Lore% 78 Gallery% 90 Achievement% 75 Wizard Run 0 Options --------- ASCII 0 Keyboard 1 Movement Numpad Keybinds 0 Fullscreen 2 Font 18/X11Bold Map View 76x50 Zoom Use 0% Tactical HUD 1 Map Filters NONE Filters NONE Steam 1 RUN: 55916b2a-de0c-4920-be10-3bcfd6b29e2e